Workbook

Sheet Pick a and b
B1: Quadratic Rate of Growth
B3: This DIGMath module lets you investigate
C4: the rate of growth of
B5: quadratic functions y = ax2 + bx + c
B6: based on the coefficients a, b, and c.
A9: What is the the value of a (- 3 to 3)? | E9: =H9/10-3 -> -0.8 | G9: 62 | H9: 22
A11: What is the the value of b (- 7 to 7)? | E11: =I11/10 -7 -> 3.4 | G11: 62 | H11: 867 | I11: 104
B14: The values for c are c = -10, c = 0, and c = 10.
B17: The interval used is from x = -4 to x = 4.
J18: Select the point of tangency x0 = | N18: =-4+L20/10 -> -3.2
L20: 8 | M20: =a+L20*(b-a)/100 -> -3.36
A23: Click each item below for suggestions and investigations | J23: At the point of tangency x0 = | M23: =x0 -> -3.2
B24: Item 1
B25: Item 2 | J25: the slope of the tangent line when c = 10 is | O25: =2*a0*x0+b0 -> 8.520
B26: Item 3 | J26: the slope of the tangent line when c = 0 is | O26: =2*a0*x0+b0 -> 8.520
B27: Item 4 | J27: the slope of the tangent line when c = -10 is | O27: =2*a0*x0+b0 -> 8.520
A31: To access/download all the DIGMath Apps for Calculus
A32: Click this link: | C32: DIGMath for Calculus
A34: Created by: Sheldon P. Gordon
A35: Farmingdale State College
A36: Development of this module was supported by the
A37: NSF's Division of Undergraduate Education
A38: under grants DUE-0310123 and DUE-0442160.

Sheet Pick a and c
B1: Quadratic Rate of Growth
B3: This DIGMath module lets you investigate
C4: the rate of growth of
B5: quadratic functions y = ax2 + bx + c
B6: based on the coefficients a, b, and c.
A9: What is the the value of a (- 3 to 3)? | E9: =H9/10-3 -> -1.8 | G9: 62 | H9: 12
A11: What is the the value of c (- 7 to 7)? | E11: =H11/10 -7 -> 1.4 | F11: 62 | G11: 867 | H11: 84
B14: The values for b are b = -2, b = 2, and b = 6.
B17: The interval used is from x = - 4 to x = 4.
J18: Select the point of tangency x0 = | N18: =-4+L20/10 -> 0.3
L20: 43 | M20: =a+L20*(b-a)/100 -> -0.56
A23: Click each item below for suggestions and investigations | J23: At the point of tangency x0 = | M23: =x00 -> 0.3
B24: Item 1
B25: Item 2 | J25: the slope of the tangent line when b = -2 is | O25: =2*a00*x00-2 -> -3.080
B26: Item 3 | J26: the slope of the tangent line when b = 2 is | O26: =2*a00*x00+2 -> 0.920
B27: Item 4 | J27: the slope of the tangent line when b = 6 is | O27: =2*a00*x00+6 -> 4.920
A31: To access/download all the DIGMath Apps for Calculus
A32: Click this link: | C32: DIGMath for Calculus
A34: Created by: Sheldon P. Gordon
A35: Farmingdale State College
A36: Development of this module was supported by the
A37: NSF's Division of Undergraduate Education
A38: under grants DUE-0310123 and DUE-0442160.

Sheet Pick b and c
B1: Quadratic Rate of Growth
B3: This DIGMath module lets you investigate
C4: the rate of growth of
B5: quadratic functions y = ax2 + bx + c
B6: based on the coefficients a, b, and c.
A9: What is the the value of b (- 3 to 3)? | E9: =H9/10-3 -> 0.4 | G9: 62 | H9: 34
A11: What is the the value of c (- 7 to 7)? | E11: =H11/10 -7 -> -0.5 | F11: 62 | G11: 867 | H11: 65
B14: The values for a are: a = -1, a = 1, and a = 3.
B17: The interval used is from x = -4 to x = 4.
J18: Select the point of tangency x0 = | N18: =-4+L20/10 -> 0.7
L20: 47 | M20: =a+L20*(b-a)/100 -> -0.24
A23: Click each item below for suggestions and investigations | J23: At the point of tangency x0 = | M23: =x000 -> 0.7
B24: Item 1
B25: Item 2 | J25: the slope of the tangent line when a = -1 is | O25: =2*(-1)*x000+b000 -> -1.000
B26: Item 3 | J26: the slope of the tangent line when a = 1 is | O26: =2*(1)*x000+b000 -> 1.800
B27: Item 4 | J27: the slope of the tangent line when a = 3 is | O27: =2*(3)*x000+b000 -> 4.600
A31: To access/download all the DIGMath Apps for Calculus
A32: Click this link: | C32: DIGMath for Calculus
A34: Created by: Sheldon P. Gordon
A35: Farmingdale State College
A36: Development of this module was supported by the
A37: NSF's Division of Undergraduate Education
A38: under grants DUE-0310123 and DUE-0442160.

Sheet Sheet2
A1: a = | B1: -4 | D1: a = | E1: -4 | G1: a = | H1: -4
A2: b = | B2: 4 | D2: b = | E2: 4 | G2: b = | H2: 4
A4: =x0 -> -3.2 | B4: =a0*x0^2+b0*x0+10 -> -9.072 | D4: =x00 -> 0.3 | E4: =a00*x00^2+6*x00+c00 -> 3.038 | G4: =x000 -> 0.7 | H4: =-1*x000^2+b000*x000+c000 -> -0.71
A6: c = 10 | D6: b=6 | G6: a = -1
A7: =a -> -4 | B7: =a0*A7^2+b0*A7+10 -> -16.4 | D7: =a -> -4 | E7: =a00*D7^2+6*D7+c00 -> -51.4 | G7: =a -> -4 | H7: =-1*G7^2+b000*G7+c000 -> -18.1
A8: 0 | B8: =a0*A8^2+b0*A8+10 -> 10 | D8: 0 | E8: =a00*D8^2+6*D8+c00 -> 1.4 | G8: 0 | H8: =-1*G8^2+b000*G8+c000 -> -0.5
A9: =b -> 4 | B9: =a0*A9^2+b0*A9+10 -> 10.8 | D9: =b -> 4 | E9: =a00*D9^2+6*D9+c00 -> -3.4 | G9: =b -> 4 | H9: =-1*G9^2+b000*G9+c000 -> -14.9
A11: =x0 -> -3.2 | B11: =a0*A11^2+b0*A11+10 -> -9.072 | D11: =x00 -> 0.3 | E11: =a00*D11^2+6*D11+c00 -> 3.038 | G11: =x000 -> 0.7 | H11: =-1*G11^2+b000*G11+c000 -> -0.71
A12: =x0+0.1 -> -3.1 | B12: =a0*A12^2+b0*A12+10 -> -8.228 | D12: =x00+0.1 -> 0.4 | E12: =a00*D12^2+6*D12+c00 -> 3.512 | G12: =x000+0.1 -> 0.8 | H12: =-1*G12^2+b000*G12+c000 -> -0.82
A15: c = 0 | D15: b=2 | G15: a = 1
A16: =a -> -4 | B16: =a0*A16^2+b0*A16+0 -> -26.4 | D16: =a -> -4 | E16: =a00*D16^2+2*D16+c00 -> -35.4 | G16: =a -> -4 | H16: =1*G16^2+b000*G16+c000 -> 13.9
A17: 0 | B17: =a0*A17^2+b0*A17+0 -> 0 | D17: 0 | E17: =a00*D17^2+2*D17+c00 -> 1.4 | G17: 0 | H17: =1*G17^2+b000*G17+c000 -> -0.5
A18: =b -> 4 | B18: =a0*A18^2+b0*A18+0 -> 0.8 | D18: =b -> 4 | E18: =a00*D18^2+2*D18+c00 -> -19.4 | G18: =b -> 4 | H18: =1*G18^2+b000*G18+c000 -> 17.1
A20: =x0 -> -3.2 | B20: =a0*A20^2+b0*A20+0 -> -19.072 | D20: =x00 -> 0.3 | E20: =a00*D20^2+2*D20+c00 -> 1.838 | G20: =x000 -> 0.7 | H20: =1*G20^2+b000*G20+c000 -> 0.27
A21: =x0+0.2 -> -3 | B21: =a0*A21^2+b0*A21+0 -> -17.4 | D21: =x00+0.2 -> 0.5 | E21: =a00*D21^2+2*D21+c00 -> 1.95 | G21: =x000+0.2 -> 0.9 | H21: =1*G21^2+b000*G21+c000 -> 0.67
A23: =x0 -> -3.2 | B23: =a0*A23^2+b0*A23+0 -> -19.072 | D23: =x00 -> 0.3 | E23: =a00*D23^2+2*D23+c00 -> 1.838 | G23: =x000 -> 0.7 | H23: =1*G23^2+b000*G23+c000 -> 0.27
A25: c = -10 | D25: b = -2 | G25: a = 3
A26: =a -> -4 | B26: =a0*A26^2+b0*A26-10 -> -36.4 | D26: =a -> -4 | E26: =a00*D26^2-2*D26+c00 -> -19.4 | G26: =a -> -4 | H26: =3*G26^2+b000*G26+c000 -> 45.9
A27: 0 | B27: =a0*A27^2+b0*A27-10 -> -10 | D27: 0 | E27: =a00*D27^2-2*D27+c00 -> 1.4 | G27: 0 | H27: =3*G27^2+b000*G27+c000 -> -0.5
A28: =b -> 4 | B28: =a0*A28^2+b0*A28-10 -> -9.2 | D28: =b -> 4 | E28: =a00*D28^2-2*D28+c00 -> -35.4 | G28: =b -> 4 | H28: =3*G28^2+b000*G28+c000 -> 49.1
A30: =x0 -> -3.2 | B30: =a0*A30^2+b0*A30-10 -> -29.072 | D30: =x00 -> 0.3 | E30: =a00*D30^2-2*D30+c00 -> 0.638 | G30: =x000 -> 0.7 | H30: =3*G30^2+b000*G30+c000 -> 1.25
A31: =x0+0.2 -> -3 | B31: =a0*A31^2+b0*A31-10 -> -27.4 | D31: =x00+0.2 -> 0.5 | E31: =a00*D31^2-2*D31+c00 -> -0.05 | G31: =x000+0.2 -> 0.9 | H31: =3*G31^2+b000*G31+c000 -> 2.29
A33: =x0 -> -3.2 | B33: =a0*A33^2+b0*A33-10 -> -29.072 | D33: =x00 -> 0.3 | E33: =a00*D33^2-2*D33+c00 -> 0.638 | G33: =x000 -> 0.7 | H33: =3*G33^2+b000*G33+c000 -> 1.25
